{"text_format":"3","workbook":"xlsx","n_sheets":4,"sheets":["Claim form","Translation","Selections","Changelog"],"not_rendered":{"images":1,"defined_names":3,"comments":1},"read":"whole","date_system":"1900"}

{"sheet":"Claim form","index":0,"n_rows":85,"n_cols":56,"rows_kept":85,"merged":[[0,43,0,46],[0,48,0,51],[0,53,0,56],[3,0,4,56],[5,0,5,56],[7,3,7,14],[7,19,7,30],[7,34,7,47],[8,3,12,14],[8,19,12,30],[8,35,12,46],[8,50,9,52],[16,3,16,52],[18,6,19,13],[18,15,19,22],[18,24,19,31],[18,33,19,40],[18,42,19,49],[21,6,22,13],[21,15,22,22],[21,24,22,31],[21,33,22,40],[21,42,22,49],[25,3,27,52],[28,3,28,52],[29,3,43,52],[46,3,48,52],[49,3,49,52],[50,3,64,52],[68,42,68,52],[69,42,69,52],[73,3,73,52],[74,3,77,52],[79,3,79,47],[80,20,80,49],[80,50,80,56],[81,29,81,49],[84,0,85,51],[84,52,85,52],[84,53,85,54],[84,55,85,56]]}
[]
[]
[]
[{"$f":"UPPER(Translation!A7)","v":"REKLAMATIONSSCHEIN"}]
[]
[{"$f":"Translation!A3","v":"F 8.3-4"}]
[]
[{"$nulls":3},{"$f":"Translation!A4","v":"Kunde"},{"$nulls":15},{"$f":"Translation!A5","v":"Kontaktperson"},{"$nulls":14},{"$f":"Translation!A6","v":"Kontaktperson in TOORS"}]
[{"$nulls":50},"DE"]
{"$rows_empty":7}
[{"$nulls":3},{"$f":"Translation!A8","v":"Nachstehende Angaben füllen Sie im Computer, bzw. Mit Blockschrift aus"}]
[]
[{"$nulls":6},{"$f":"Translation!A9","v":"Datum der Reklamation-erhebung"},{"$nulls":8},{"$f":"Translation!A10","v":"Datum der Reklamation-entstehung"},{"$nulls":8},{"$f":"Translation!A11","v":"Reklamierte Auftrag Nummer"},{"$nulls":8},{"$f":"Translation!A12","v":"Position Nummer"},{"$nulls":8},{"$f":"Translation!A13","v":"Anzahl der angelegten Fotos zur Reklamatin"}]
[]
[]
[]
[]
[]
[]
[{"$nulls":3},{"$f":"UPPER(Translation!A14)","v":"KURZE BESCHRIEBUNG DER REKLAMATION"}]
[]
[]
[{"$nulls":3},{"$f":"Translation!A15","v":"(Defektbeschreibung, Spezifikation der fehlenden Teile, Abmessungabweichung im Vergleich zur Dokumentation…)"}]
{"$rows_empty":17}
[{"$nulls":3},{"$f":"UPPER(Translation!A16)","v":"LÖSUNGSVORSCHLAG"}]
[]
[]
[{"$nulls":3},{"$f":"Translation!A17","v":"(Reparatur, neue Teile liefern, Preisermässigung...)"}]
{"$rows_empty":19}
[{"$nulls":42},{"$f":"Translation!A18","v":"Unterschrift"}]
[]
[]
[]
[{"$nulls":3},{"$f":"Translation!A19","v":"Zur Beachtung!"}]
[{"$nulls":3},{"$f":"Translation!A20","v":"Sehr geehrter Kunde, binnen einem Tag erhalten Sie die Bestätigung Ihrer Reklamation mit der Nummer,\nunter der die Reklamation gelöst wird. Erhalten Sie die Bestätigung nicht in diesem Zeitraum, wenden Sie\nsich bitte an Ihre Kontaktperson in TOORS an."}]
[]
[]
[]
[]
[]
[{"$nulls":20},{"$f":"Translation!A21","v":"Zugeordnete Nummer der Reklamation:"}]
[{"$nulls":29},{"$f":"Translation!A22","v":"(füllt der TOORS-Angestellte aus)"}]
[]
[]
[{"$f":"\"TOORS CZ s.r.o., Turkova 1338, 504 01 Nový Bydžov, \"&Translation!A2&\", T: +420 495 491 855,  F: +420 498 606 714, e-mail: toors@toors.cz, www.toors.cz\"","v":"TOORS CZ s.r.o., Turkova 1338, 504 01 Nový Bydžov, Tschechische Republik, T: +420 495 491 855,  F: +420 498 606 714, e-mail: toors@toors.cz, www.toors.cz"},{"$nulls":52},"rev.: ",null,1902]

{"sheet":"Translation","index":1,"n_rows":134,"n_cols":7,"rows_kept":134,"hidden":true}
[{"$f":"IF('Claim form'!AY9=B1,1,IF('Claim form'!AY9=C1,2,IF('Claim form'!AY9=D1,3,IF('Claim form'!AY9=E1,4,IF('Claim form'!AY9=F1,5,IF('Claim form'!AY9=G1,6,\"Chyba\"))))))","v":3},"CZ","EN","DE","PL","NL","FR"]
[{"$f":"VLOOKUP(B2,B:G,$A$1,FALSE)","v":"Tschechische Republik"},"Česká republika","Czech Republic","Tschechische Republik","Republika Czeska","Tsjechische Republiek","République tchèque"]
[{"$f":"VLOOKUP(B3,B:G,$A$1,FALSE)","v":"F 8.3-4"},"F 8.3-4","F 8.3-4","F 8.3-4","F 8.3-4","F 8.3-4","F 8.3-4"]
[{"$f":"VLOOKUP(B4,B:G,$A$1,FALSE)","v":"Kunde"},"Zákazník","Customer","Kunde","Klient",null,"Client"]
["Kontaktperson","Kontaktní osoba","Contact person","Kontaktperson","Osoba kontaktowa",null,"Correspondant"]
["Kontaktperson in TOORS","Kontaktní osoba v TOORS","Contact person in TOORS","Kontaktperson in TOORS","Osoba kontaktowa w TOORS",null,"Correspondant chez TOORS"]
["Reklamationsschein","Reklamační formulář","Claim Form","Reklamationsschein","FORMULARZ REKLAMACJI","?","Fiche de réclamation"]
["Nachstehende Angaben füllen Sie im Computer, bzw. Mit Blockschrift aus","Níže uvedené údaje vyplňte v počítači, případně hůlkovým písmem","Fill up below mentioned details in the computer or by capital letters","Nachstehende Angaben füllen Sie im Computer, bzw. Mit Blockschrift aus","Należy uzupełnić poniższej wymienione informacje drukowanymi literami lub na komputerze",null,"Veuillez saisir les informations ci-dessous sur un ordinateur ou en lettres capitales"]
["Datum der Reklamation-erhebung","Datum podání reklamace","Claim notice date","Datum der Reklamation-erhebung","Data zgłoszenia reklamacji",null,"Date de présentation de la réclamation"]
["Datum der Reklamation-entstehung","Datum vzniku reklamace","Date of the claim establishment","Datum der Reklamation-entstehung","Data przyjęcia reklamacji",null,"Date d’apparition de la réclamation"]
["Reklamierte Auftrag Nummer","Číslo reklamované zakázky","TOORS's acknowledgement number","Reklamierte Auftrag Nummer","Numer uznania TOORS",null,"Numéro de l’affaire faisant l’objet d’une réclamation"]
[{"$f":"VLOOKUP(B12,B:G,$A$1,FALSE)","v":"Position Nummer"},"Číslo pozice","Position number","Position Nummer","Numer pozycji",null,"Numéro d’article"]
["Anzahl der angelegten Fotos zur Reklamatin","Počet přiložených fotografií reklamace","Number of attached pictures referring to claim","Anzahl der angelegten Fotos zur Reklamatin","Liczba załączonych zdjęć dotyczących reklamacji",null,"Nombre de photos jointes à la réclamation"]
["Kurze Beschriebung der Reklamation","Stručný popis reklamace","Short description of the claim","Kurze Beschriebung der Reklamation","Krótki opis reklamacji",null,"Brève description de la réclamation"]
["(Defektbeschreibung, Spezifikation der fehlenden Teile, Abmessungabweichung im Vergleich zur Dokumentation…)","(popis poškození, specifikace chybějících dílů, odchylka rozměrů v porovnání s přiloženou dokumentací… )","(damage description, missing parts specification, measure discrepancies compared to attached documentation…)","(Defektbeschreibung, Spezifikation der fehlenden Teile, Abmessungabweichung im Vergleich zur Dokumentation…)","(opis uszkodzenia, określenie brakujących części, rozbieżności pomiarów w porównaniu z załączoną dokumentacją…)",null,"(description des détériorations, spécification des pièces manquantes, écart dimensionnel par rapport à la documentation jointe, etc.)"]
["Lösungsvorschlag","Navrhované řešení","Solution proposal","Lösungsvorschlag","Propozycja rozwiązania problemu",null,"Solution proposée        "]
["(Reparatur, neue Teile liefern, Preisermässigung...)","(oprava, dodání nového dílu, sleva...)","(repair, supply of the new part, discount...)","(Reparatur, neue Teile liefern, Preisermässigung...)","(naprawa, dostarczenie nowej części, rabat…)",null,"(réparation, livraison d’une pièce neuve, réduction du prix, etc.)"]
["Unterschrift","Podpis","Signature","Unterschrift","Podpis",null,"Signature"]
["Zur Beachtung!","Důležité!","Important!","Zur Beachtung!","Uwaga!",null,"Important!"]
["Sehr geehrter Kunde, binnen einem Tag erhalten Sie die Bestätigung Ihrer Reklamation mit der Nummer,\nunter der die Reklamation gelöst wird. Erhalten Sie die Bestätigung nicht in diesem Zeitraum, wenden Sie\nsich bitte an Ihre Kontaktperson in TOORS an.","Vážený zákazníku, do jednoho pracovního dne obdržíte potvrzení Vámi zaslané reklamace včetně čísla, pod kterým bude reklamace vedena.Neobdržíte-li potvrzení ve stanoveném čase, prosím, obraťte se na Vaši kontaktní osobu v TOORS.","Dear customer, within 1 working day you will receive confirmation of your claim including the TOORS reference number for your evidence.  In case you don´t receive confirmation in this time, please contact TOORS.","Sehr geehrter Kunde, binnen einem Tag erhalten Sie die Bestätigung Ihrer Reklamation mit der Nummer,\nunter der die Reklamation gelöst wird. Erhalten Sie die Bestätigung nicht in diesem Zeitraum, wenden Sie\nsich bitte an Ihre Kontaktperson in TOORS an.","Szanowny kliencie, w terminie 1 dnia roboczego otrzyma Pan/Pani potwierdzenie reklamacji wraz z numerem referencyjnym TOORS. Jeżeli nie otrzyma Pan/Pani potwierdzenia w wymienionym terminie, należy skontaktować się z TOORS.",null,"Cher client, dans un délai d’un jour ouvré, vous allez recevoir une confirmation de la réclamation que vous nous avez envoyée. Cette confirmation reprendra le numéro de référence de votre réclamation. Si vous ne recevez pas cette confirmation dans le délai défini, veuillez contacter votre correspondant au sein de la société TOORS."]
["Zugeordnete Nummer der Reklamation:","Přidělené číslo reklamace:","Claim No.:","Zugeordnete Nummer der Reklamation:","Nr reklamacji:",null,"Numéro ayant été attribué à la réclamation:"]
["(füllt der TOORS-Angestellte aus)","(vyplňuje pracovník firmy TOORS)","(filled by TOORS)","(füllt der TOORS-Angestellte aus)","(wypełnia TOORS)",null,"(à remplir par un employé de la société TOORS)"]
[{"$error":"#N/A"}]
[{"$error":"#N/A"}]
[{"$error":"#N/A"}]
[{"$error":"#N/A"}]
[{"$error":"#N/A"}]
[{"$error":"#N/A"}]
[{"$error":"#N/A"}]
[{"$error":"#N/A"}]
[{"$error":"#N/A"}]
[{"$error":"#N/A"}]
[{"$error":"#N/A"}]
[{"$error":"#N/A"}]
[{"$error":"#N/A"}]
[{"$error":"#N/A"}]
[{"$error":"#N/A"}]
[{"$error":"#N/A"}]
[{"$error":"#N/A"}]
[{"$error":"#N/A"}]
[{"$error":"#N/A"}]
[{"$error":"#N/A"}]
[{"$error":"#N/A"}]
[{"$error":"#N/A"}]
[{"$error":"#N/A"}]
[{"$error":"#N/A"}]
[{"$error":"#N/A"}]
[{"$error":"#N/A"}]
[{"$error":"#N/A"}]
[{"$error":"#N/A"}]
[{"$error":"#N/A"}]
[{"$error":"#N/A"}]
[{"$error":"#N/A"}]
[{"$error":"#N/A"}]
[{"$error":"#N/A"}]
[{"$error":"#N/A"}]
[{"$error":"#N/A"}]
[{"$error":"#N/A"}]
[{"$error":"#N/A"}]
[{"$error":"#N/A"}]
[{"$error":"#N/A"}]
[{"$error":"#N/A"}]
[{"$error":"#N/A"}]
[{"$error":"#N/A"}]
[{"$error":"#N/A"}]
[{"$error":"#N/A"}]
[{"$error":"#N/A"}]
[{"$f":"VLOOKUP(B68,B:G,$A$1,FALSE)","v":{"$error":"#N/A"}}]
[{"$error":"#N/A"}]
[{"$error":"#N/A"}]
[{"$error":"#N/A"}]
[{"$error":"#N/A"}]
[{"$error":"#N/A"}]
[{"$error":"#N/A"}]
[{"$error":"#N/A"}]
[{"$error":"#N/A"}]
[{"$error":"#N/A"}]
[{"$error":"#N/A"}]
[{"$error":"#N/A"}]
[{"$error":"#N/A"}]
[{"$error":"#N/A"}]
[{"$error":"#N/A"}]
[{"$error":"#N/A"}]
[{"$error":"#N/A"}]
[{"$error":"#N/A"}]
[{"$error":"#N/A"}]
[{"$error":"#N/A"}]
[{"$error":"#N/A"}]
[{"$error":"#N/A"}]
[{"$error":"#N/A"}]
[{"$error":"#N/A"}]
[{"$error":"#N/A"}]
[{"$error":"#N/A"}]
[{"$error":"#N/A"}]
[{"$error":"#N/A"}]
[{"$error":"#N/A"}]
[{"$error":"#N/A"}]
[{"$error":"#N/A"}]
[{"$error":"#N/A"}]
[{"$error":"#N/A"}]
[{"$error":"#N/A"}]
[{"$error":"#N/A"}]
[{"$error":"#N/A"}]
[{"$error":"#N/A"}]
[{"$error":"#N/A"}]
[{"$error":"#N/A"}]
[{"$error":"#N/A"}]
[{"$error":"#N/A"}]
[{"$error":"#N/A"}]
[{"$error":"#N/A"}]
[{"$error":"#N/A"}]
[{"$error":"#N/A"}]
[{"$error":"#N/A"}]
[{"$error":"#N/A"}]
[{"$error":"#N/A"}]
[{"$error":"#N/A"}]
[{"$error":"#N/A"}]
[{"$error":"#N/A"}]
[{"$error":"#N/A"}]
[{"$error":"#N/A"}]
[{"$error":"#N/A"}]
[{"$error":"#N/A"}]
[{"$error":"#N/A"}]
[{"$error":"#N/A"}]
[{"$error":"#N/A"}]
[{"$error":"#N/A"}]
[{"$error":"#N/A"}]
[{"$error":"#N/A"}]
[{"$error":"#N/A"}]
[{"$error":"#N/A"}]
[{"$error":"#N/A"}]
[{"$f":"VLOOKUP(B132,B:G,$A$1,FALSE)","v":{"$error":"#N/A"}}]
[{"$error":"#N/A"}]
[{"$error":"#N/A"}]

{"sheet":"Selections","index":2,"n_rows":83,"n_cols":56,"rows_kept":83,"hidden":true}
["Výběr jazyka"]
["CZ"]
["EN"]
["DE"]
["PL"]
["FR"]
["NL"]
[]
["Ano"]
["Ne"]
{"$rows_empty":72}
[{"$nulls":55},1649]

{"sheet":"Changelog","index":3,"n_rows":14,"n_cols":9,"rows_kept":14,"hidden":true}
[null,null,"INDY","GUARDY","EXT","EXPRESS","2WD","MD","NG"]
[null,"Verze ke smazání",1836,1836,1836,1836,1819,1819,1819]
[null,"Aktuální verze",1837,1836,1836,1836,1836,1836,1836]
[]
[null,"Aktualizace dle jazykových verzí"]
[null,{"$f":"Selections!A2","v":"CZ"},"Ano","Ano","Ano","Ano","Ano","Ano","Ano"]
[null,{"$f":"Selections!A3","v":"EN"},"Ano","Ano","Ano","Ano","Ano","Ano","Ano"]
[null,{"$f":"Selections!A4","v":"DE"},"Ano","Ano","Ano","Ano","Ano","Ano","Ano"]
[null,{"$f":"Selections!A5","v":"PL"},"Ano","Ano","Ano","Ano","Ano","Ano","Ano"]
[null,{"$f":"Selections!A7","v":"NL"},"Ano","Ano","Ano","Ano","Ano","Ano","Ano"]
[null,{"$f":"Selections!A6","v":"FR"},"Ano","Ano","Ano","Ano","Ano","Ano","Ano"]
[]
["Datum","Verze","Popis"]
["2018-09-12",1837,"Vydána první verze v redesignu a jednom dokumentu."]